fUST/lending_fUST_20250220
["ID","MTS","AMOUNT","RATE_DAILY","PERIOD"]
[353652832,1739982638988,-553.7,0.00013778,2]
[353652833,1739982638997,-500.0,0.00013778,2]
[353652834,1739982639007,-500.0,0.00013778,2]
[353652835,1739982639016,-500.0,0.00013778,2]
[353652836,1739982639026,-500.0,0.00013779,2]
[353652837,1739982639036,-496.7,0.00013779,2]
[353652839,1739982639045,-500.0,0.00013779,2]
[353652840,1739982639055,-500.0,0.00013779,2]
[353652841,1739982639065,-500.0,0.00013779,2]
[353652842,1739982639075,-500.0,0.00013779,2]
[353652843,1739982639084,-551.75131589,0.00013779,2]
[353652844,1739982639094,-500.0,0.00013779,2]
[353652845,1739982639103,-500.0,0.00013779,2]
[353652846,1739982639112,-500.0,0.00013779,2]
[353652847,1739982639122,-500.0,0.00013779,2]
[353652848,1739982639131,-1087.98,0.00013779,2]
[353652849,1739982639140,-500.0,0.00013779,2]
[353652850,1739982639150,-500.0,0.00013779,2]
[353652851,1739982639159,-500.0,0.00013779,2]
[353652852,1739982639168,-504.72494917,0.00013779,2]
[353652853,1739982639178,-500.01,0.00013779,2]
[353652854,1739982639188,-161.24,0.00013779,2]
[353652855,1739982639197,-500.0,0.00013779,2]
[353652856,1739982639206,-500.0,0.00013779,2]
[353652857,1739982639216,-500.0,0.00013779,2]
[353652858,1739982639225,-500.0,0.00013779,2]
[353652859,1739982639235,-331.64879416,0.00013779,2]
[353652860,1739982639245,-500.0,0.00013779,2]
[353652861,1739982639254,-500.0,0.00013779,2]
[353652862,1739982639263,-500.0,0.00013779,2]
[353652863,1739982639273,-500.0,0.00013779,2]
[353652864,1739982639283,-500.0,0.00013779,2]
[353652865,1739982639292,-2224.05,0.00013779,2]
[353652866,1739982639302,-500.0,0.00013779,2]
[353652867,1739982639312,-500.0,0.00013779,2]
[353652868,1739982639321,-500.0,0.00013779,2]
[353652869,1739982639330,-533.94,0.00013779,2]
[353652870,1739982639340,-500.0,0.00013779,2]
[353652871,1739982639349,-500.0,0.00013779,2]
[353652872,1739982639359,-500.0,0.00013779,2]
[353652873,1739982639368,-338.54,0.0001378,2]
[353652874,1739982639378,-546.63300251,0.0001378,2]
[353652875,1739982639388,-500.0,0.0001378,2]
[353652876,1739982639399,-615.22,0.0001378,2]
[353652877,1739982639408,-500.0,0.0001378,2]
[353652878,1739982639418,-500.0,0.0001378,2]
[353652879,1739982639427,-500.0,0.00013859,2]
[353652880,1739982639437,-500.0,0.00013859,2]
[353652881,1739982639447,-218.03066625,0.00013859,2]
[353652882,1739982639457,-500.0,0.0001386,2]
[353652883,1739982639467,-500.0,0.0001386,2]
[353652884,1739982639476,-500.0,0.0001386,2]
[353652885,1739982639486,-563.45,0.0001386,2]
[353652886,1739982639495,-384.10111261,0.0001386,2]
[353652887,1739982639508,-115.89888739,0.0001386,2]
[353652888,1739982639518,-500.0,0.0001386,2]
[353652889,1739982639528,-500.0,0.0001386,2]
[353652890,1739982639537,-553.7,0.0001386,2]
[353652891,1739982639547,-500.0,0.0001386,2]
[353652892,1739982639558,-500.0,0.0001386,2]
[353652893,1739982639568,-500.0,0.0001386,2]
[353652894,1739982639578,-500.0,0.00013861,2]
[353652895,1739982639588,-1087.98,0.00013861,2]
[353652896,1739982639597,-500.0,0.00013861,2]
[353652897,1739982639607,-500.0,0.00013861,2]
[353652898,1739982639620,-500.0,0.00013861,2]
[353652899,1739982639631,-2224.05,0.00013861,2]
[353652900,1739982639640,-347.53,0.00013861,2]
[353652901,1739982639651,-533.94,0.00013861,2]
[353652902,1739982639661,-500.0,0.00013862,2]
[353652903,1739982639670,-500.0,0.00013863,2]
[353652904,1739982639680,-500.0,0.00013863,2]
[353652905,1739982639691,-500.0,0.00013863,2]
[353652906,1739982639701,-500.0,0.00013943,2]
[353652907,1739982639711,-500.0,0.00013943,2]
[353652908,1739982639721,-563.45,0.00013943,2]
[353652909,1739982639731,-500.0,0.00013943,2]
[353652910,1739982639740,-500.0,0.00013943,2]
[353652911,1739982639749,-500.0,0.00013943,2]
[353652912,1739982639759,-553.7,0.00013943,2]
[353652913,1739982639768,-500.0,0.00013943,2]
[353652914,1739982639777,-257.27754596,0.00013943,2]
[353652915,1739982639787,-500.0,0.00013943,2]
[353652916,1739982639796,-500.0,0.00013944,2]
[353652917,1739982639805,-1087.98,0.00013944,2]
[353652918,1739982639817,-500.0,0.00013944,2]
[353652919,1739982639827,-2224.05,0.00013944,2]
[353652920,1739982639836,-533.94,0.00013944,2]
[353652921,1739982639846,-500.0,0.00013945,2]
[353652922,1739982639856,-513.96,0.00013945,2]
[353652923,1739982639866,-689.56897408,0.00013946,2]
[353652924,1739982639876,-502.38399481,0.0001395,2]
[353652925,1739982639886,-406.47818565,0.0001399,2]
[353652926,1739982639896,-4096.74829003,0.0001399,2]
[353652927,1739982639906,-1000.0,0.00014,2]
[353652928,1739982639916,-500.0,0.00014025,2]
[353652929,1739982639927,-500.0,0.00014025,2]
[353652930,1739982639937,-563.45,0.00014025,2]
[353652931,1739982639947,-500.0,0.00014025,2]
[353652932,1739982639956,-500.0,0.00014025,2]
[353652933,1739982639966,-500.0,0.00014025,2]
[353652934,1739982639977,-553.7,0.00014025,2]
[353652935,1739982639986,-500.0,0.00014025,2]
[353652936,1739982639996,-1087.98,0.00014026,2]
[353652940,1739982640113,-500.0,0.00014026,2]
[353652941,1739982640123,-2224.05,0.00014026,2]
[353652942,1739982640132,-533.94,0.00014026,2]
[353652943,1739982640142,-500.0,0.00014027,2]
[353652944,1739982640151,-500.4381034,0.00014056,2]
[353652945,1739982640161,-500.0,0.00014056,2]
[353652946,1739982640171,-500.0,0.00014107,2]
[353652947,1739982640181,-500.0,0.00014107,2]
[353652948,1739982640190,-563.45,0.00014107,2]
[353652949,1739982640201,-445.36,0.00014107,2]
[353652950,1739982640210,-500.0,0.00014107,2]
[353652951,1739982640220,-500.0,0.00014107,2]
[353652952,1739982640230,-553.7,0.00014107,2]
[353652953,1739982640240,-500.0,0.00014107,2]
[353652954,1739982640251,-1087.98,0.00014108,2]
[353652955,1739982640260,-500.0,0.00014108,2]
[353652956,1739982640271,-2224.05,0.00014108,2]
[353652957,1739982640281,-533.94,0.00014108,2]
[353652958,1739982640291,-500.0,0.00014109,2]
[353652959,1739982640301,-160.07615822,0.00014182,2]
[353652960,1739982640312,-160.04450174,0.00014182,2]
[353652961,1739982640321,-267.57440324,0.00014182,2]
[353652962,1739982640332,-251.50138872,0.00014182,2]
[353652963,1739982640342,-191.25429503,0.00014182,2]
[353652964,1739982640351,-500.0,0.00014189,2]
[353652965,1739982640360,-514.25,0.00014189,2]
[353652966,1739982640369,-563.45,0.00014189,2]
[353652967,1739982640379,-500.0,0.00014189,2]
[353652968,1739982640389,-500.0,0.00014189,2]
[353652969,1739982640399,-553.7,0.00014189,2]
[353652970,1739982640407,-500.0,0.00014189,2]
[353652971,1739982640417,-1087.98,0.0001419,2]
[353652973,1739982640426,-332.45,0.0001419,2]
[353652975,1739982640435,-2224.05,0.0001419,2]
[353652976,1739982640444,-533.94,0.0001419,2]
[353652978,1739982640454,-500.0,0.00014191,2]
[353652980,1739982640463,-281.86552766,0.00014234,2]
[353652981,1739982640473,-3000.0,0.00014249,2]
[353652982,1739982640483,-500.0,0.00014271,2]
[353652983,1739982640493,-563.45,0.00014271,2]
[353652984,1739982640503,-500.0,0.00014271,2]
[353652985,1739982640512,-500.0,0.00014271,2]
[353652986,1739982640522,-553.7,0.00014271,2]
[353652987,1739982640531,-500.0,0.00014271,2]
[353652989,1739982640540,-1087.98,0.00014272,2]
[353652991,1739982640550,-2224.05,0.00014272,2]
[353652993,1739982640559,-533.94,0.00014272,2]
[353652995,1739982640568,-299.53,0.00014273,2]
[353652997,1739982640577,-179.71246006,0.00014336,2]
[353652999,1739982640587,-500.0,0.00014353,2]
[353653001,1739982640596,-563.45,0.00014353,2]
[353653003,1739982640607,-500.0,0.00014353,2]
[353653005,1739982640618,-500.0,0.00014353,2]
[353653007,1739982640628,-553.7,0.00014353,2]
[353653009,1739982640638,-1087.98,0.00014355,2]
[353653011,1739982640649,-2224.05,0.00014355,2]
[353653013,1739982640659,-533.94,0.00014355,2]
[353653015,1739982640669,-500.0,0.00014436,2]
[353653018,1739982640679,-563.45,0.00014436,2]
[353653019,1739982640694,-500.0,0.00014436,2]
[353653020,1739982640704,-500.0,0.00014436,2]
[353653021,1739982640713,-553.7,0.00014436,2]
[353653022,1739982640723,-1087.98,0.00014437,2]
[353653023,1739982640732,-2224.05,0.00014437,2]
[353653024,1739982640741,-533.94,0.00014437,2]
[353653025,1739982640751,-700.0,0.00014438,2]
[353653027,1739982640759,-500.0,0.00014473,2]
[353653029,1739982640769,-151.03961228,0.00014473,2]
[353653031,1739982640779,-151.04206937,0.00014473,2]
[353653033,1739982640789,-151.04296996,0.00014473,2]
[353653035,1739982640799,-224392.04207809,0.000145,2]
[353653036,1739982640809,-500.0,0.00014518,2]
[353653037,1739982640819,-563.45,0.00014518,2]
[353653038,1739982640829,-500.0,0.00014518,2]
[353653039,1739982640839,-154.9,0.00014518,2]
[353653040,1739982640850,-553.7,0.00014518,2]
[353653041,1739982640860,-1087.98,0.00014519,2]
[353653043,1739982640870,-2224.05,0.00014519,2]
[353653044,1739982640880,-533.94,0.00014519,2]
[353653045,1739982640889,-500.0,0.000146,2]
[353653046,1739982640898,-563.45,0.000146,2]
[353653047,1739982640908,-252.92,0.000146,2]
[353653048,1739982640918,-553.7,0.000146,2]
[353653049,1739982640929,-1087.98,0.00014601,2]
[353653050,1739982640939,-2224.05,0.00014601,2]
[353653051,1739982640949,-533.94,0.00014601,2]
[353653052,1739982640959,-151.04302045,0.0001467,2]
[353653053,1739982640970,-160.04457576,0.0001467,2]
[353653054,1739982640979,-500.0,0.00014682,2]
[353653055,1739982640989,-563.45,0.00014682,2]
[353653056,1739982640998,-553.7,0.00014682,2]
[353653057,1739982641008,-1087.98,0.00014683,2]
[353653058,1739982641018,-2224.05,0.00014683,2]
[353653059,1739982641027,-533.94,0.00014683,2]
[353653060,1739982641037,-680.234,0.0001475,2]
[353653061,1739982641046,-162.05120139,0.0001475,2]
[353653062,1739982641055,-1613.0,0.00014758,2]
[353653063,1739982641067,-266.41,0.00014764,2]
[353653064,1739982641076,-563.45,0.00014764,2]
[353653066,1739982641086,-553.7,0.00014764,2]
[353653067,1739982641095,-1087.98,0.00014766,2]
[353653068,1739982641104,-2224.05,0.00014766,2]
[353653069,1739982641114,-533.94,0.00014766,2]
[353653070,1739982641123,-7438.69753278,0.00014785,2]
[353653071,1739982641133,-563.45,0.00014847,2]
[353653072,1739982641143,-553.7,0.00014847,2]
[353653073,1739982641153,-1087.98,0.00014848,2]
[353653074,1739982641163,-2224.05,0.00014848,2]
[353653075,1739982641172,-533.94,0.00014848,2]
[353653076,1739982641182,-500.0,0.00014873,2]
[353653077,1739982641191,-160.04553107,0.00014873,2]
[353653078,1739982641200,-500.0,0.00014873,2]
[353653079,1739982641210,-500.0,0.00014873,2]
[353653080,1739982641220,-160.04558471,0.00014873,2]
[353653081,1739982641229,-500.0,0.00014873,2]
[353653082,1739982641239,-155.04415898,0.00014873,2]
[353653083,1739982641249,-151.04211176,0.00014873,2]
[353653084,1739982641258,-99757.0264217,0.000149,2]
[353653085,1739982641268,-10082.99462899,0.000149,2]
[353653086,1739982641277,-568.57606602,0.000149,2]
[353653087,1739982641287,-563.45,0.00014929,2]
[353653088,1739982641297,-553.7,0.00014929,2]
[353653089,1739982641307,-1087.98,0.0001493,2]
[353653090,1739982641318,-2224.05,0.0001493,2]
[353653091,1739982641328,-533.94,0.0001493,2]
[353653092,1739982641337,-501.56720577,0.00014998,2]
[353653093,1739982641347,-1000.0,0.00015,15]
[353653094,1739982641356,-1000.0,0.00015,3]
[353653095,1739982641366,-6406.91950664,0.00015,3]
[353653096,1739982641375,-3646.4315377,0.00015,2]
[353653097,1739982641384,-563.45,0.00015011,2]
[353653098,1739982641394,-553.7,0.00015011,2]
[353653099,1739982641403,-1087.98,0.00015012,2]
[353653100,1739982641413,-2224.05,0.00015012,2]
[353653101,1739982641422,-533.94,0.00015012,2]
[353653102,1739982641431,-563.45,0.00015093,2]
[353653103,1739982641441,-553.7,0.00015093,2]
[353653104,1739982641450,-1087.98,0.00015094,2]
[353653105,1739982641460,-2224.05,0.00015094,2]
[353653106,1739982641470,-533.94,0.00015094,2]
[353653107,1739982641479,-563.45,0.00015175,2]
[353653108,1739982641489,-553.7,0.00015175,2]
[353653109,1739982641498,-1087.98,0.00015176,2]
[353653110,1739982641507,-2224.05,0.00015176,2]
[353653111,1739982641517,-533.94,0.00015176,2]
[353653112,1739982641526,-563.45,0.00015258,2]
[353653113,1739982641536,-553.7,0.00015258,2]
[353653114,1739982641545,-1087.98,0.00015259,2]
[353653115,1739982641555,-2224.05,0.00015259,2]
[353653116,1739982641566,-533.94,0.00015259,2]
[353653117,1739982641575,-49878.5132108,0.00015331,2]
[353653118,1739982641585,-563.45,0.0001534,2]
[353653119,1739982641594,-553.7,0.0001534,2]
[353653120,1739982641603,-1087.98,0.00015341,2]
[353653121,1739982641616,-2224.05,0.00015341,2]
[353653122,1739982641625,-533.94,0.00015341,2]
[353653123,1739982641634,-558.36012519,0.00015421,2]
[353653124,1739982641643,-563.45,0.00015422,2]
[353653125,1739982641653,-553.7,0.00015422,2]
[353653126,1739982641663,-1087.98,0.00015423,2]
[353653127,1739982641673,-2224.05,0.00015423,2]
[353653128,1739982641682,-533.94,0.00015423,2]
[353653129,1739982641693,-563.45,0.00015504,2]
[353653130,1739982641703,-553.7,0.00015504,2]
[353653131,1739982641712,-1087.98,0.00015505,2]
[353653132,1739982641722,-2224.05,0.00015505,2]
[353653133,1739982641731,-533.94,0.00015505,2]
[353653134,1739982641740,-563.45,0.00015586,2]
[353653135,1739982641750,-553.7,0.00015586,2]
[353653136,1739982641759,-1087.98,0.00015587,2]
[353653137,1739982641768,-2224.05,0.00015587,2]
[353653138,1739982641778,-533.94,0.00015587,2]
[353653139,1739982641787,-563.61,0.00015669,2]
[353653140,1739982641796,-553.85,0.00015669,2]
[353653141,1739982641805,-1088.21,0.0001567,2]
[353653142,1739982641815,-2224.09523537,0.0001567,2]
[353653143,1739982641825,-534.15180088,0.0001567,2]
[353653144,1739982641835,-321.024393,0.00015775,2]
[353653145,1739982641844,-394.0,0.00015796,2]
[353653146,1739982641854,-394.0,0.00015796,2]
[353653147,1739982641863,-394.0,0.00015796,2]
[353653148,1739982641872,-394.0,0.00015796,2]
[353653149,1739982641882,-394.0,0.00015796,2]
[353653150,1739982641891,-394.0,0.00015796,2]
[353653151,1739982641901,-394.0,0.00015796,2]
[353653152,1739982641910,-394.0,0.00015796,2]
[353653153,1739982641930,-394.0,0.00015796,2]
[353653154,1739982641940,-394.0,0.00015796,2]
[353653155,1739982641949,-394.0,0.00015796,2]
[353653156,1739982641959,-394.0,0.00015796,2]
[353653157,1739982641968,-394.0,0.00015796,2]
[353653158,1739982641978,-394.0,0.00015796,2]
[353653159,1739982641987,-470.0,0.00015798,2]
[353653160,1739982641997,-470.0,0.00015798,2]
[353653161,1739982642006,-470.0,0.00015798,2]
[353653162,1739982642018,-470.0,0.00015798,2]
[353653163,1739982642027,-470.0,0.00015798,2]
[353653164,1739982642037,-470.0,0.00015798,2]
[353653165,1739982642047,-470.0,0.00015798,2]
[353653166,1739982642056,-470.0,0.00015798,2]
[353653167,1739982642067,-470.0,0.00015798,2]
[353653168,1739982642076,-470.0,0.00015798,2]
[353653169,1739982642086,-470.0,0.00015798,2]
[353653170,1739982642096,-470.0,0.00015798,2]
[353653171,1739982642105,-470.0,0.00015798,2]
[353653172,1739982642115,-470.0,0.00015798,2]
[353653173,1739982642125,-394.0,0.00015807,2]
[353653174,1739982642134,-394.0,0.00015807,2]
[353653175,1739982642144,-394.0,0.00015807,2]
[353653176,1739982642154,-394.0,0.00015807,2]
[353653177,1739982642165,-394.0,0.00015807,2]
[353653178,1739982642176,-394.0,0.00015807,2]
[353653179,1739982642185,-394.0,0.00015807,2]
[353653180,1739982642195,-394.0,0.00015807,2]
[353653181,1739982642204,-394.0,0.00015807,2]
[353653182,1739982642213,-394.0,0.00015807,2]
[353653183,1739982642223,-394.0,0.00015807,2]
[353653184,1739982642233,-394.0,0.00015807,2]
[353653185,1739982642243,-394.0,0.00015807,2]
[353653186,1739982642252,-394.0,0.00015807,2]
[353653187,1739982642262,-700.0,0.00015808,2]
[353653188,1739982642272,-470.0,0.00015809,2]
[353653189,1739982642282,-470.0,0.00015809,2]
[353653190,1739982642292,-470.0,0.00015809,2]
[353653191,1739982642302,-470.0,0.00015809,2]
[353653192,1739982642311,-470.0,0.00015809,2]
[353653193,1739982642320,-470.0,0.00015809,2]
[353653194,1739982642330,-470.0,0.00015809,2]
[353653195,1739982642340,-470.0,0.00015809,2]
[353653196,1739982642349,-470.0,0.00015809,2]
[353653197,1739982642359,-470.0,0.00015809,2]
[353653198,1739982642369,-470.0,0.00015809,2]
[353653199,1739982642378,-470.0,0.00015809,2]
[353653200,1739982642387,-470.0,0.00015809,2]
[353653201,1739982642397,-470.0,0.00015809,2]
[353653202,1739982642407,-394.0,0.00015818,2]
[353653203,1739982642537,-394.0,0.00015818,2]
[353653204,1739982642547,-394.0,0.00015818,2]
[353653205,1739982642557,-394.0,0.00015818,2]
[353653206,1739982642568,-394.0,0.00015818,2]
[353653207,1739982642578,-394.0,0.00015818,2]
[353653208,1739982642587,-394.0,0.00015818,2]
[353653209,1739982642596,-394.0,0.00015818,2]
[353653210,1739982642606,-394.0,0.00015818,2]
[353653211,1739982642618,-394.0,0.00015818,2]
[353653212,1739982642627,-394.0,0.00015818,2]
[353653213,1739982642636,-394.0,0.00015818,2]
[353653214,1739982642646,-394.0,0.00015818,2]
[353653215,1739982642657,-394.0,0.00015818,2]
[353653216,1739982642666,-470.0,0.0001582,2]
[353653217,1739982642676,-470.0,0.0001582,2]
[353653218,1739982642688,-470.0,0.0001582,2]
[353653219,1739982642697,-470.0,0.0001582,2]
[353653220,1739982642707,-470.0,0.0001582,2]
[353653221,1739982642716,-470.0,0.0001582,2]
[353653222,1739982642726,-470.0,0.0001582,2]
[353653223,1739982642736,-470.0,0.0001582,2]
[353653224,1739982642745,-470.0,0.0001582,2]
[353653225,1739982642754,-470.0,0.0001582,2]
[353653226,1739982642763,-470.0,0.0001582,2]
[353653227,1739982642772,-470.0,0.0001582,2]
[353653228,1739982642783,-470.0,0.0001582,2]
[353653229,1739982642793,-470.0,0.0001582,2]
[353653230,1739982642803,-394.0,0.00015829,2]
[353653231,1739982642813,-394.0,0.00015829,2]
[353653232,1739982642822,-394.0,0.00015829,2]
[353653233,1739982642832,-394.0,0.00015829,2]
[353653234,1739982642842,-394.0,0.00015829,2]
[353653235,1739982642851,-394.0,0.00015829,2]
[353653236,1739982642862,-394.0,0.00015829,2]
[353653237,1739982642872,-394.0,0.00015829,2]
[353653238,1739982642881,-394.0,0.00015829,2]
[353653239,1739982642890,-394.0,0.00015829,2]
[353653240,1739982642900,-394.0,0.00015829,2]
[353653241,1739982642909,-394.0,0.00015829,2]
[353653242,1739982642918,-394.0,0.00015829,2]
[353653243,1739982642928,-394.0,0.00015829,2]
[353653244,1739982642937,-470.0,0.00015831,2]
[353653245,1739982642947,-470.0,0.00015831,2]
[353653246,1739982642956,-470.0,0.00015831,2]
[353653247,1739982642965,-470.0,0.00015831,2]
[353653248,1739982642975,-470.0,0.00015831,2]
[353653249,1739982642984,-470.0,0.00015831,2]
[353653250,1739982642994,-470.0,0.00015831,2]
[353653251,1739982643003,-470.0,0.00015831,2]
[353653252,1739982643012,-470.0,0.00015831,2]
[353653253,1739982643022,-470.0,0.00015831,2]
[353653254,1739982643031,-470.0,0.00015831,2]
[353653255,1739982643040,-470.0,0.00015831,2]
[353653256,1739982643049,-470.0,0.00015831,2]
[353653257,1739982643058,-470.0,0.00015831,2]
[353653258,1739982643070,-345.58112975,0.000159,2]
[353653259,1739982643079,-1000.0,0.00016,16]
[353653260,1739982643089,-1000.0,0.00016,4]
[353653261,1739982643099,-38638.37539949,0.0001609,2]
[353653262,1739982643109,-151.0,0.000161,2]
[353653263,1739982643119,-225.44,0.000161,2]
[353653264,1739982643128,-155.58545062,0.000161,2]
[353653265,1739982643138,-155.58545062,0.000161,2]
[353653266,1739982643147,-155.58545062,0.000161,2]
[353653267,1739982643157,-155.58545062,0.000161,2]
[353653268,1739982643167,-155.58,0.000161,2]
[353653269,1739982643176,-28780.85500995,0.00016163,2]
[353653270,1739982643246,-21097.65820085,0.00016163,2]
[353653271,1739982643256,-500.0,0.00016173,2]
[353653272,1739982643266,-605.65031961,0.00016173,2]
[353653273,1739982643275,-500.18961432,0.00016173,2]
[353653274,1739982643285,-500.0,0.00016173,2]
[353653275,1739982643294,-500.0,0.00016173,2]
[353653276,1739982643304,-500.0,0.00016173,2]
[353653277,1739982643315,-500.0,0.00016173,2]
[353653278,1739982643325,-163.32279024,0.00016173,2]
[353653279,1739982643335,-500.0,0.00016173,2]
[353653280,1739982643344,-500.0,0.00016173,2]
[353653281,1739982643354,-500.0,0.00016173,2]
[353653282,1739982643363,-431.13927372,0.00016173,2]
[353653283,1739982643372,-500.0,0.00016173,2]
[353653284,1739982643381,-500.0,0.00016173,2]
[353653285,1739982643391,-261.70172979,0.00016173,2]
[353653286,1739982643400,-500.0,0.00016173,2]
[353653287,1739982643409,-149635.539632,0.0001619,2]
[353653288,1739982643419,-151.0,0.000162,2]
[353653289,1739982643428,-2258.0,0.00016233,2]
[353653290,1739982643438,-345.58112972,0.000163,2]
[353653291,1739982643447,-154.7376905,0.00016356,2]
[353653292,1739982643457,-153.0,0.00016356,2]
[353653294,1739982643467,-153.0,0.00016356,2]
[353653296,1739982643476,-151.0,0.000164,2]
[353653298,1739982643485,-151.0,0.000165,2]
[353653300,1739982643495,-10052.38462478,0.000165,2]
[353653302,1739982643504,-151.0,0.000167,2]
[353653304,1739982643514,-345.58112972,0.000167,2]
[353653306,1739982643523,-1000.3801526,0.00016721,2]
[353653308,1739982643533,-500.83239552,0.00016721,2]
[353653310,1739982643542,-1000.0,0.00016721,2]
[353653312,1739982643552,-1000.0,0.00016721,2]
[353653313,1739982643562,-549.9769644,0.0001673,2]
[353653314,1739982643572,-151.0,0.000168,2]
[353653315,1739982643582,-151.0,0.000168,2]
[353653316,1739982643591,-549.9769644,0.0001683,2]
[353653317,1739982643601,-498.57453263,0.0001687,2]
[353653318,1739982643613,-549.9769644,0.0001693,2]
[353653319,1739982643622,-151.0,0.00017,2]
[353653320,1739982643632,-1000.0,0.00017,17]
[353653321,1739982643642,-1000.0,0.00017,5]
[353653322,1739982643651,-1319.90364068,0.00017,2]
[353653323,1739982643660,-465.44642236,0.00017022,2]
[353653324,1739982643670,-549.9769644,0.0001703,2]
[353653326,1739982643680,-151.0,0.000171,2]
[353653328,1739982643690,-151.0,0.000171,2]
[353653330,1739982643699,-345.58112972,0.000171,2]
[353653331,1739982643708,-549.9769644,0.0001713,2]
[353653332,1739982643718,-700.0,0.00017178,2]
[353653333,1739982643728,-431.8632571,0.00017178,2]
[353653334,1739982643738,-2000.0,0.000172,4]
[353653335,1739982643748,-549.9769644,0.0001723,2]
[353653336,1739982643758,-2568.781459,0.00017247,2]
[353653337,1739982643767,-151.0,0.000173,2]
[353653338,1739982643777,-151.0,0.000173,2]
[353653339,1739982643787,-13275.53870192,0.00017313,2]
[353653341,1739982643797,-549.9769644,0.0001733,2]
[353653343,1739982643806,-267.57237439,0.00017334,2]
[353653345,1739982643820,-158.54408547,0.00017334,2]
[353653348,1739982643830,-160.04558452,0.00017334,2]
[353653349,1739982643839,-150.000331,0.00017334,2]
[353653351,1739982643848,-151.0,0.000174,2]
[353653354,1739982643858,-549.9769644,0.0001743,2]
[353653356,1739982643867,-500.0,0.00017473,2]
[353653358,1739982643876,-30000.0,0.000175,10]
[353653360,1739982643887,-30000.0,0.000175,10]
[353653361,1739982643896,-30000.0,0.000175,10]
[353653364,1739982643906,-30000.0,0.000175,10]
[353653365,1739982643915,-30000.0,0.000175,10]
[353653367,1739982643925,-30000.0,0.000175,10]
[353653368,1739982643935,-23325.18117065,0.000175,10]
[353653369,1739982643944,-345.58112972,0.000175,2]
[353653370,1739982643954,-460.39117049,0.000175,2]
[353653371,1739982643964,-13498.23162692,0.000175,2]
[353653372,1739982643974,-175.34766543,0.000175,2]
[353653373,1739982643984,-175.34766543,0.000175,2]
[353653374,1739982643994,-175.34,0.000175,2]
[353653375,1739982644004,-151.26363254,0.000175,2]
[353653376,1739982644014,-151.26363254,0.000175,2]
[353653377,1739982644023,-151.26363254,0.000175,2]
[353653378,1739982644033,-151.26363254,0.000175,2]
[353653379,1739982644042,-151.26363254,0.000175,2]
[353653380,1739982644051,-151.26363254,0.000175,2]
[353653381,1739982644062,-151.26363254,0.000175,2]
[353653382,1739982644072,-151.26363254,0.000175,2]
[353653383,1739982644081,-151.26363254,0.000175,2]
[353653384,1739982644091,-151.26363254,0.000175,2]
[353653385,1739982644100,-151.26363254,0.000175,2]
[353653386,1739982644109,-151.26,0.000175,2]
[353653387,1739982644120,-549.9769644,0.0001753,2]
[353653388,1739982644129,-161.984055,0.00017538,10]
[353653389,1739982644140,-193.83841,0.0001755,10]